bitfinex-derivatives/quotes_ETHF0:USTF0_20250115
["timestamp","ask_amount","ask_price","bid_price","bid_amount"]
[1736933517410,0.31037,3223.1,3222.9,0.31038]
[1736933518411,0.31037,3223.1,3222.7,0.9233]
[1736933518609,0.31037,3223.1,3222.8,0.31039]
[1736933519009,0.31037,3223.1,3222.7,0.9233]
[1736933519211,0.31037,3223.1,3222.8,0.31039]
[1736933519404,0.31037,3223.1,3222.7,0.9233]
[1736933519606,0.31037,3223.1,3222.9,0.31038]
[1736933520908,0.31036,3223.2,3222.9,0.31038]
[1736933521111,3.42960908,3223.4,3222.7,0.9233]
[1736933521311,3.2078,3223.5,3223.4,0.31033]
[1736933522012,3.2078,3223.9,3223.8,0.31029]
[1736933522716,3.2078,3223.9,3223.8,41.11029]
[1736933524616,3.2078,3223.9,3223.8,43.55069533]
[1736933525122,3.2078,3224.4,3224.3,0.31025]
[1736933525818,3.2078,3224.9,3224.8,0.3102]
[1736933527515,0.9514,3225.8,3224.8,2.44040533]
[1736933527819,3.57034727,3225.7,3225.5,0.31013]
[1736933528019,3.57034727,3225.7,3225.4,0.31014]
[1736933528208,3.2078,3225.9,3225.6,0.31012]
[1736933528413,3.5179,3225.9,3225.5,0.31013]
[1736933528811,3.2078,3225.9,3225.3,0.4701]
[1736933529110,3.2078,3225.9,3225.4,0.31014]
[1736933529421,3.2078,3225.9,3225.6,0.31011]
[1736933530214,3.2078,3225.9,3225.5,3.2078]
[1736933530514,3.2078,3225.9,3225.8,0.3101]
[1736933530720,0.31007,3226.2,3225.8,0.3101]
[1736933531315,3.2078,3226.3,3225.7,2.44040533]
[1736933531516,3.2078,3226.3,3225.8,0.5004]
[1736933531813,3.2078,3226.3,3226.1,0.31007]
[1736933532217,3.2078,3226.3,3226.2,0.31007]
[1736933533624,3.2078,3226.3,3225.8,0.5004]
[1736933533814,3.51786,3226.3,3225.9,0.31009]
[1736933534010,3.51786,3226.3,3225.8,0.5004]
[1736933534207,3.2078,3226.3,3226.0,0.31008]
[1736933534814,3.2078,3226.3,3226.1,0.31007]
[1736933535019,3.6849,3226.7,3226.0,2.44040533]
[1736933535207,3.6849,3226.7,3226.5,0.31004]
[1736933535412,3.6849,3226.7,3226.0,2.44040533]
[1736933535810,3.6849,3226.7,3226.5,0.31003]
[1736933536215,3.2078,3226.7,3226.5,0.31003]
[1736933536621,3.2078,3226.7,3226.1,1.297]
[1736933536823,3.2078,3226.7,3226.4,0.31004]
[1736933537118,3.2078,3226.7,3226.1,1.297]
[1736933537322,3.2078,3226.7,3226.3,2.44040533]
[1736933537514,3.2078,3226.7,3226.5,0.31004]
[1736933537719,3.2078,3226.7,3226.4,0.31004]
[1736933538423,3.2078,3226.7,3226.5,0.31003]
[1736933539522,3.2078,3226.7,3226.6,0.31003]
[1736933539826,3.2078,3226.7,3226.5,0.31004]
[1736933540120,3.2078,3226.7,3226.4,0.31004]
[1736933540422,3.2078,3226.7,3226.5,0.31003]
[1736933540825,3.2078,3226.7,3226.4,0.31004]
[1736933541127,3.2078,3226.7,3226.5,0.31003]
[1736933541321,3.2078,3226.7,3226.4,0.31004]
[1736933541722,3.2078,3226.7,3226.1,1.297]
[1736933542027,3.51786,3226.3,3225.9,0.31009]
[1736933542222,3.51786,3226.3,3226.0,0.31008]
[1736933542521,3.51786,3226.3,3225.8,0.5004]
[1736933542722,3.51786,3226.3,3226.0,0.31008]
[1736933542921,3.2078,3226.3,3226.1,0.31007]
[1736933543120,3.2078,3226.3,3225.8,0.5004]
[1736933543427,3.2078,3226.3,3226.2,0.31007]
[1736933543927,0.31004,3226.5,3226.1,0.31007]
[1736933544420,0.9738,3226.6,3226.0,2.44040533]
[1736933544624,0.9738,3226.6,3226.4,0.31004]
[1736933544820,0.9738,3226.6,3226.3,0.31005]
[1736933545126,0.9738,3226.6,3226.4,0.31004]
[1736933545823,1.28383,3226.6,3226.3,0.31005]
[1736933546020,0.9738,3226.6,3226.4,0.31004]
[1736933546630,1.28383,3226.6,3226.3,0.31005]
[1736933546926,0.9738,3226.6,3226.4,0.31004]
[1736933547527,2.44040533,3226.5,3225.9,3.2078]
[1736933547729,3.2078,3226.3,3225.8,0.5004]
[1736933547928,0.475,3226.4,3225.8,0.5004]
[1736933548327,0.9738,3226.6,3226.4,0.31004]
[1736933549925,0.9738,3226.6,3226.5,0.31004]
[1736933550232,0.9738,3226.6,3226.0,2.44040533]
[1736933550233,0.9738,3226.6,3226.4,0.31004]
[1736933551031,0.485,3226.6,3226.5,0.31004]
[1736933551232,3.2078,3226.7,3226.6,0.31003]
[1736933551624,3.2078,3226.7,3226.6,41.11003]
[1736933552228,3.2078,3226.7,3226.6,40.8]
[1736933552727,3.2078,3226.7,3226.6,43.55043533]
[1736933553625,0.4669,3227.2,3227.1,0.30998]
[1736933553823,3.6939,3227.3,3227.1,0.30998]
[1736933554220,4.00386,3227.3,3227.1,0.30998]
[1736933554431,3.6939,3227.3,3227.1,0.30998]
[1736933554825,3.6939,3227.3,3226.6,44.0078]
[1736933555031,3.5178,3226.9,3226.6,41.11002]
[1736933555233,3.2078,3226.9,3226.7,0.31001]
[1736933555432,3.2078,3226.9,3226.4,0.4933]
[1736933555630,0.9413,3226.8,3226.4,0.4933]
[1736933555827,0.31005,3226.4,3226.3,40.8]
[1736933556027,0.31005,3226.4,3225.9,1.7606]
[1736933556235,0.31006,3226.3,3226.0,0.31008]
[1736933556533,0.31005,3226.4,3226.1,40.8]
[1736933556927,0.31005,3226.4,3226.1,41.11007]
[1736933557137,3.2078,3226.5,3226.1,40.8]
[1736933557328,3.51784,3226.5,3226.2,0.31006]
[1736933558838,0.31007,3226.2,3225.9,0.4646]
[1736933559039,3.6668,3226.1,3225.4,3.2078]
[1736933559236,7.71147212,3226.1,3225.5,1.7954]
[1736933559534,0.3101,3225.8,3225.6,40.8]
[1736933560238,4.05857212,3226.0,3225.6,40.8]
[1736933560640,0.3101,3225.9,3225.6,40.8]
[1736933560938,0.3101,3225.9,3225.6,41.11012]
[1736933562541,4.36866212,3226.0,3225.7,0.31011]
[1736933562733,3.6668,3226.1,3225.9,0.31009]
[1736933562941,3.6668,3226.1,3225.6,40.8]
[1736933563132,3.6668,3226.1,3225.8,0.3101]
[1736933563133,3.97688,3226.1,3225.8,0.3101]
[1736933563328,3.97688,3226.1,3225.6,40.8]
[1736933563734,3.97688,3226.1,3225.8,0.3101]
[1736933563936,0.31009,3226.0,3225.7,0.31011]
[1736933564128,0.31009,3226.0,3225.6,40.8]
[1736933564129,3.6668,3226.1,3225.6,40.8]
[1736933564335,3.97688,3226.1,3225.8,0.3101]
[1736933564643,3.6668,3226.1,3225.6,40.8]
[1736933564844,0.31009,3226.0,3225.7,0.3101]
[1736933566044,0.3101,3225.9,3225.6,41.11012]
[1736933566340,3.23633818,3226.0,3225.6,40.8]
[1736933566644,3.54642818,3226.0,3225.7,0.31011]
[1736933566845,0.3101,3225.9,3225.6,41.11012]
[1736933567448,0.3101,3225.9,3225.7,0.31011]
[1736933567748,3.54642818,3226.0,3225.8,0.3101]
[1736933568440,3.23633818,3226.0,3225.8,0.3101]
[1736933568843,3.23633818,3226.0,3225.9,0.31009]
[1736933569343,3.2078,3226.1,3225.7,0.31011]
[1736933569543,3.2078,3226.1,3225.9,0.31008]
[1736933569745,3.2078,3226.1,3225.6,41.2551]
[1736933569951,3.2078,3226.1,3226.0,0.31008]
[1736933570550,0.31006,3226.3,3225.7,3.2078]
[1736933570757,3.2078,3226.5,3225.9,2.44040533]
[1736933570944,3.2078,3226.5,3226.1,0.31007]
[1736933571149,0.31006,3226.3,3226.0,0.77918]
[1736933571350,0.31006,3226.3,3226.1,0.31007]
[1736933571551,0.31006,3226.3,3226.0,0.77918]
[1736933571854,3.2078,3226.1,3225.7,3.2078]
[1736933572049,0.3101,3225.9,3225.6,5.18233425]
[1736933572358,3.2297227,3226.0,3225.5,41.2994]
[1736933572559,3.5398127,3226.0,3225.7,0.31011]
[1736933573052,3.5398127,3226.0,3225.5,41.2994]
[1736933573053,3.2297227,3226.0,3225.5,41.2994]
[1736933573252,0.31009,3225.9,3225.6,0.31012]
[1736933573659,3.5398127,3226.0,3225.7,0.3101]
[1736933574252,3.2297227,3226.0,3225.8,0.3101]
[1736933574660,3.5398127,3226.0,3225.8,0.3101]
[1736933574850,3.2297227,3226.0,3225.8,0.3101]
[1736933576556,3.2297227,3226.0,3225.9,0.31009]
[1736933576953,3.2078,3226.1,3225.6,2.44040533]
[1736933577252,0.4598,3226.4,3226.2,0.31006]
[1736933577657,3.35425827,3226.3,3226.2,0.31006]
[1736933580868,3.51784,3226.5,3226.3,0.31005]
[1736933581160,0.31005,3226.4,3225.7,3.98309]
[1736933581366,3.44381209,3226.4,3225.9,0.31009]
[1736933581563,0.31007,3226.2,3225.9,0.31009]
[1736933581762,3.44381209,3226.4,3225.7,3.2078]
[1736933581763,0.31006,3226.3,3226.0,0.31008]
[1736933582266,3.44381209,3226.4,3225.7,3.2078]
[1736933582457,0.31006,3226.3,3226.0,0.31008]
[1736933582657,0.31006,3226.3,3226.1,0.31007]
[1736933582864,3.44381209,3226.4,3225.7,3.2078]
[1736933583065,3.62776654,3226.2,3225.9,0.31009]
[1736933583266,0.31007,3226.2,3225.9,0.31009]
[1736933583769,3.2078,3226.5,3225.7,3.2078]
[1736933583955,0.31009,3226.0,3225.7,3.51791]
[1736933584563,0.31009,3226.0,3225.8,0.3101]
[1736933585065,3.2078,3226.5,3225.7,3.2078]
[1736933585266,0.31005,3226.4,3226.2,0.31006]
[1736933585464,3.40280549,3226.3,3226.2,0.31006]
[1736933585667,3.71285549,3226.4,3226.1,0.31007]
[1736933585964,3.2078,3226.5,3226.2,0.4739]
[1736933586166,3.59509722,3226.3,3226.2,0.9271]
[1736933586363,0.31006,3226.3,3226.2,0.9271]
[1736933586557,0.31005,3226.4,3226.2,1.23716]
[1736933586971,3.59508722,3226.4,3226.2,1.23716]
[1736933587564,3.59508722,3226.4,3226.3,0.31006]
[1736933588068,3.2078,3226.5,3226.4,0.31005]
[1736933588962,0.31006,3226.4,3226.2,1.23716]
[1736933589165,0.31006,3226.3,3226.2,0.9271]
[1736933589467,0.31007,3226.2,3226.0,0.31008]
[1736933589669,0.31008,3226.1,3225.9,0.31009]
[1736933590165,3.25089142,3226.3,3225.8,5.82981172]
[1736933590166,0.31007,3226.2,3226.1,0.31007]
[1736933590672,0.31007,3226.2,3226.0,0.31008]
[1736933591071,3.25089142,3226.3,3225.8,0.9587]
[1736933591365,0.31006,3226.3,3226.1,0.31007]
[1736933592866,0.46,3226.4,3226.1,0.31007]
[1736933593269,0.31006,3226.3,3226.1,0.31007]
[1736933594273,3.2078,3226.5,3225.9,2.44040533]
[1736933594571,3.2078,3226.5,3226.4,0.31005]
[1736933594874,3.2078,3226.5,3226.4,41.11005]
[1736933595571,3.2078,3227.0,3226.4,40.8]
[1736933595872,3.2078,3227.0,3226.5,2.44040533]
[1736933596071,3.2078,3227.0,3226.9,0.31]
[1736933597674,3.2078,3227.0,3226.9,0.4698]
[1736933597875,3.2078,3227.0,3226.4,0.4925]
[1736933598074,0.31005,3226.4,3226.3,4.87111172]
[1736933598767,0.31007,3226.2,3226.0,0.4568]
[1736933598971,3.51787,3226.2,3226.0,0.4568]
[1736933599173,3.2078,3226.2,3226.0,0.4568]
[1736933599371,3.2078,3226.2,3226.0,0.76688]
[1736933600373,3.2078,3226.2,3226.0,0.4568]
[1736933600579,3.2078,3226.2,3226.1,0.31007]
[1736933601271,3.2078,3226.6,3226.1,0.31007]
[1736933601474,3.2078,3226.6,3226.5,0.31004]
[1736933601872,3.2078,3226.6,3226.1,2.44040533]
[1736933602073,0.31004,3226.5,3226.2,0.31006]
[1736933602273,3.53208227,3226.5,3226.1,4.87262506]
[1736933602474,0.31006,3226.3,3226.1,4.87262506]
[1736933602677,3.51787,3226.2,3226.1,4.87262506]
[1736933602873,7.04995227,3226.2,3226.1,4.87262506]
[1736933603070,3.51787,3226.2,3226.0,41.2568]
[1736933603276,3.2078,3226.2,3226.0,0.4568]
[1736933603683,3.2078,3226.2,3226.0,0.76688]
[1736933604683,3.2078,3226.2,3226.1,0.31007]
[1736933605476,3.2078,3226.2,3226.1,0.80927]
[1736933605677,3.2078,3226.6,3226.5,0.31003]
[1736933605881,0.31002,3226.7,3226.3,0.31005]
[1736933606080,0.31003,3226.6,3226.1,0.4992]
[1736933606380,6.56416872,3226.6,3226.0,5.32942506]
[1736933606585,0.31007,3226.2,3226.0,5.32942506]
[1736933606990,0.31007,3226.1,3226.0,5.32942506]
[1736933607284,0.31007,3226.1,3226.0,0.4568]
[1736933607482,3.2078,3226.2,3226.0,0.4568]
[1736933607691,3.51787,3226.2,3226.0,0.4568]
[1736933608690,3.2078,3226.2,3226.0,0.4568]
[1736933608987,3.2078,3226.2,3226.0,0.76688]
[1736933609485,3.2078,3226.2,3226.0,0.4568]
[1736933609677,0.31007,3226.1,3226.0,0.4568]
[1736933609981,3.2078,3226.2,3226.0,0.4568]
[1736933610189,3.51787,3226.2,3226.0,0.4568]
[1736933610885,3.2078,3226.2,3226.0,0.4568]
[1736933611090,3.51787,3226.2,3226.0,0.4568]
[1736933612587,3.51787,3226.2,3225.9,0.77989]
[1736933612588,3.2078,3226.2,3225.6,3.2078]
[1736933612780,3.79259832,3226.1,3225.6,5.82302506]
[1736933612981,0.31011,3225.8,3225.6,5.82302506]
[1736933613181,3.51791,3225.8,3225.6,5.82302506]
[1736933613390,3.51791,3225.8,3225.6,6.13314506]
[1736933614195,3.51791,3225.8,3225.6,1.26052]
[1736933614388,3.2078,3225.8,3225.4,40.8]
[1736933614591,0.31013,3225.6,3225.4,40.8]
[1736933614785,4.48702709,3225.7,3225.4,41.11014]
[1736933615192,3.22910709,3225.7,3225.6,0.31012]
[1736933615391,3.2078,3225.8,3225.7,0.31011]
[1736933615595,3.2078,3225.8,3225.6,0.31012]
[1736933615793,3.2078,3225.8,3225.5,0.4829]
[1736933616094,3.2078,3225.8,3225.7,0.31011]
[1736933617193,3.51787,3226.2,3225.9,0.31009]
[1736933617588,6.91293282,3226.2,3225.9,0.31009]
[1736933618094,6.60286282,3226.2,3225.5,0.4829]
[1736933618397,3.51792,3225.7,3225.4,0.31014]
[1736933618589,0.49,3225.6,3225.4,0.31014]
[1736933618905,0.49,3225.6,3225.4,41.11014]
[1736933619291,0.49,3225.6,3225.4,40.8]
[1736933619292,0.80013,3225.6,3225.4,40.8]
[1736933619696,0.49,3225.6,3225.4,40.8]
[1736933619895,0.31014,3225.5,3225.2,4.44555]
[1736933620199,0.80013,3225.6,3225.3,0.31015]
[1736933620495,3.2078,3225.7,3225.6,0.31012]
[1736933621893,2.44040533,3226.3,3225.2,44.9354]
[1736933621894,3.2078,3226.1,3225.4,2.44040533]
[1736933622193,3.2078,3226.1,3226.0,0.31008]
[1736933624896,3.2078,3226.5,3226.3,0.31005]
[1736933625092,3.2078,3226.5,3226.2,0.31006]
[1736933625297,3.51784,3226.5,3226.3,0.31006]
[1736933625494,3.2078,3226.5,3226.1,0.9857]
[1736933625694,0.31007,3226.2,3226.0,0.31008]
[1736933625894,0.4618,3226.1,3226.0,0.31008]
[1736933626095,1.24027,3226.1,3226.0,0.31008]
[1736933626395,0.9302,3226.1,3226.0,0.31008]
[1736933626808,1.24028,3226.1,3225.9,0.31009]
[1736933626990,7.38503984,3226.1,3225.7,0.31011]
[1736933627193,0.31011,3225.8,3225.6,1.29582]
[1736933627393,0.31013,3225.5,3225.4,4.87262506]
[1736933627997,2.75053533,3225.5,3225.4,4.87262506]
[1736933628203,3.21233533,3225.5,3225.4,4.87262506]
[1736933628703,0.77193,3225.5,3225.4,4.87262506]
[1736933628900,0.4618,3225.5,3225.4,5.18276506]
[1736933629096,0.4618,3225.5,3225.4,0.31014]
[1736933629303,0.4618,3225.5,3225.2,0.9744]
[1736933629503,0.4618,3225.5,3225.4,0.31014]
[1736933631398,0.498,3225.6,3225.5,0.31013]
[1736933631596,3.2078,3225.7,3225.6,0.31012]
[1736933632002,6.72852071,3225.7,3225.6,0.31012]
[1736933632304,7.03864071,3225.7,3225.5,0.31013]
[1736933632903,6.72852071,3225.7,3225.6,0.31012]
[1736933633806,3.2078,3225.7,3225.6,0.31012]
[1736933634597,3.51792,3225.7,3225.5,0.31013]
[1736933634798,0.31013,3225.6,3225.2,0.9744]
[1736933635105,3.58277403,3225.6,3225.2,0.9744]
[1736933635300,0.31014,3225.4,3225.3,0.31015]
[1736933635707,0.31014,3225.4,3225.2,1.28456]
[1736933636003,0.31015,3225.3,3225.2,0.9744]
[1736933636202,3.22741887,3225.3,3225.0,3.2078]
[1736933636403,0.4892,3225.2,3225.1,0.31017]
[1736933636905,0.78955,3225.4,3225.2,0.31016]
[1736933637307,3.33200981,3225.3,3225.2,0.31016]
[1736933638603,3.33200981,3225.3,3224.9,40.8]
[1736933638803,3.33200981,3225.3,3225.1,0.31017]
[1736933639305,3.64216981,3225.3,3225.0,0.31018]
[1736933639713,6.84996981,3225.3,3225.0,0.31018]
[1736933640209,6.53980981,3225.3,3224.8,1.4277]
[1736933640409,6.84996981,3225.3,3224.9,0.31018]
[1736933640914,0.31018,3225.0,3224.8,0.9664]
[1736933641308,6.53980981,3225.3,3224.8,0.9664]
[1736933641509,0.31019,3225.0,3224.8,0.9664]
[1736933641709,6.53980981,3225.3,3224.8,0.9664]
[1736933641710,0.31019,3224.9,3224.8,0.9664]
[1736933641915,3.69146509,3224.9,3224.8,0.9664]
[1736933642126,6.89926509,3224.9,3224.8,0.9664]
[1736933643916,3.2078,3224.9,3224.8,0.9664]
[1736933644124,3.51799,3224.9,3224.8,0.9664]
[1736933647427,3.2078,3224.9,3224.3,1.253]
[1736933647625,3.2078,3224.9,3224.4,0.9264]
[1736933647825,0.4532,3224.8,3224.5,0.31022]
[1736933648024,0.76341,3224.8,3224.5,0.31022]
[1736933648327,0.4532,3224.8,3224.5,0.31022]
[1736933648630,0.31021,3224.7,3224.5,0.31022]
[1736933648830,0.31021,3224.7,3224.4,1.23663]
[1736933649427,0.4532,3224.8,3224.4,1.23663]
[1736933649726,0.31022,3224.6,3224.4,1.23663]
[1736933650031,0.4532,3224.8,3224.4,0.9264]
[1736933650230,0.31023,3224.5,3224.4,0.9264]
[1736933651427,3.27772784,3224.7,3224.4,0.9264]
[1736933651624,3.2078,3224.9,3224.8,0.3102]
[1736933652330,3.2078,3224.9,3224.8,41.1102]
[1736933653533,3.2078,3224.9,3224.8,40.8]
[1736933653729,3.51799,3224.9,3224.8,40.8]
[1736933653931,0.31023,3224.5,3224.4,2.1794]
[1736933654233,0.31023,3224.5,3224.4,0.9264]
[1736933654930,0.31021,3224.7,3224.5,0.31023]
[1736933655334,3.58152176,3224.7,3224.5,0.31023]
[1736933655537,0.78391,3224.8,3224.6,0.31021]
[1736933655736,0.78391,3224.8,3224.4,0.9264]
[1736933655938,0.31021,3224.8,3224.4,0.9264]
[1736933656433,3.2078,3224.9,3224.8,0.3102]
[1736933656935,3.2078,3224.9,3224.6,0.31021]
[1736933657133,3.2078,3224.9,3224.4,0.9264]
[1736933657430,3.51799,3224.9,3224.5,0.31023]
[1736933657634,0.3102,3224.8,3224.6,0.31021]
[1736933658028,0.31022,3224.6,3224.4,1.23663]
[1736933658229,3.2078,3224.9,3224.5,0.31023]
[1736933658532,0.31021,3224.7,3224.5,0.31023]
[1736933659733,0.31021,3224.7,3224.4,0.9264]
[1736933659734,3.2078,3224.9,3224.4,0.9264]
[1736933659935,0.3102,3224.8,3224.6,0.31021]
[1736933660127,3.2078,3224.9,3224.4,0.9264]
[1736933660327,3.2078,3224.9,3224.8,0.3102]
[1736933663828,0.31018,3225.1,3224.9,0.31018]
[1736933664136,3.24971044,3225.0,3224.5,0.31023]
[1736933664348,3.24971044,3225.0,3224.9,0.31019]
[1736933664530,0.80507,3225.2,3225.0,0.31017]
[1736933664729,0.80507,3225.2,3225.1,0.9443]
[1736933665125,3.2078,3225.3,3225.1,0.9443]
[1736933665331,3.2078,3225.3,3225.2,0.77906]
[1736933666330,0.31016,3225.2,3225.1,0.9443]
[1736933666536,0.80086,3225.2,3225.1,0.9443]
[1736933667335,0.4907,3225.2,3224.8,1.243]
[1736933667642,0.31019,3224.9,3224.8,1.243]
[1736933667934,0.31019,3224.9,3224.8,1.5532]
[1736933668438,4.02146417,3225.2,3224.8,1.5532]
[1736933668631,0.31019,3225.0,3224.8,1.5532]
[1736933669031,0.31018,3225.1,3224.9,0.31018]
[1736933670442,0.31019,3225.0,3224.8,1.5532]
[1736933670631,4.02146417,3225.2,3224.8,1.243]
[1736933670934,0.31022,3224.6,3224.5,3.2078]
[1736933672836,0.9572,3224.8,3224.5,3.51803]
[1736933673139,0.4616,3224.8,3224.3,3.39640533]
[1736933673341,0.31022,3224.6,3224.4,0.31023]
[1736933674442,0.31022,3224.6,3224.3,3.39640533]
[1736933674645,0.31022,3224.6,3224.5,0.31023]
[1736933674837,0.31022,3224.6,3224.4,0.31023]
[1736933675636,0.31022,3224.6,3224.3,3.39640533]
[1736933675835,0.31021,3224.7,3224.5,0.31022]
[1736933676239,0.4616,3224.8,3224.6,0.4684]
[1736933676443,0.7718,3224.8,3224.6,0.77861]
[1736933676745,0.3102,3224.8,3224.6,0.77861]
[1736933677142,3.2078,3224.9,3224.6,0.77861]
[1736933677143,0.31021,3224.7,3224.6,0.77861]
[1736933677337,0.31021,3224.7,3224.6,0.4684]
[1736933680545,3.51801,3224.7,3224.6,0.4684]
[1736933683946,4.01438,3225.1,3224.7,0.31021]
[1736933684246,3.24389559,3224.9,3224.6,0.4684]
[1736933684441,3.24389559,3224.9,3224.8,0.3102]
[1736933684648,3.2078,3225.1,3225.0,0.31018]
[1736933685045,3.2078,3225.5,3225.4,0.31014]
[1736933685250,3.2078,3225.9,3225.8,0.3101]
[1736933685445,3.2078,3225.9,3225.8,2.75050533]
[1736933685841,3.2078,3225.9,3225.8,3.71800533]
[1736933686038,10.86342613,3226.4,3225.8,6.61570533]
[1736933686241,10.86342613,3226.4,3226.3,0.31006]
[1736933686648,3.2078,3226.5,3226.4,0.31005]
[1736933690549,0.31001,3226.9,3226.5,0.31003]
[1736933690756,3.2078,3226.6,3226.1,2.44040533]
[1736933690955,3.2078,3226.6,3226.4,0.31004]
[1736933691651,0.31004,3226.5,3226.2,1.55006]
[1736933691860,3.60152292,3226.5,3226.2,0.31006]
[1736933692057,3.29148292,3226.5,3226.1,1.24]
[1736933692353,3.60152292,3226.5,3226.2,0.31006]
[1736933692759,0.31005,3226.4,3226.1,0.31007]
[1736933694556,3.43759513,3226.3,3225.8,4.4854]
[1736933694761,0.31007,3226.2,3225.8,4.4854]
[1736933696255,0.958,3226.3,3225.8,4.1753]
[1736933696662,3.23543183,3226.2,3225.8,4.1753]
[1736933698055,0.31009,3226.0,3225.8,4.1753]
[1736933698453,3.23543183,3226.2,3225.8,0.9675]
[1736933698454,8.88363716,3226.2,3225.8,0.9675]
[1736933698653,0.31014,3225.5,3225.2,0.31016]
[1736933698858,3.51793,3225.6,3225.3,0.31014]
[1736933699061,3.2078,3225.6,3225.1,0.9244]
[1736933699260,3.2078,3225.6,3225.4,0.31014]
[1736933699560,3.2078,3225.6,3225.1,0.9244]
[1736933699756,3.51793,3225.6,3225.3,0.31015]
[1736933700160,3.2078,3225.6,3225.1,0.9244]
[1736933700357,3.42656922,3225.5,3225.0,3.2078]
[1736933700665,0.31017,3225.1,3225.0,3.2078]
[1736933700960,4.38666922,3225.5,3224.5,3.7012]
[1736933700961,2.44040533,3225.3,3224.5,3.7012]
[1736933701166,0.31021,3224.7,3224.5,3.7012]
[1736933701355,0.31022,3224.6,3224.5,3.7012]
[1736933701560,3.2078,3224.9,3224.3,0.4985]
[1736933701861,0.31025,3224.3,3224.1,0.4934]
[1736933702062,3.51804,3224.4,3224.1,0.80366]
[1736933702365,3.2078,3224.4,3224.1,41.2934]
[1736933702662,0.31025,3224.3,3224.1,41.2934]
[1736933704562,3.80019169,3224.2,3224.1,40.8]
[1736933705059,0.31026,3224.2,3224.1,40.8]
[1736933705265,3.48993169,3224.2,3224.1,40.8]
[1736933705468,3.51804,3224.4,3224.1,40.8]
[1736933705667,3.51804,3224.4,3224.1,41.11026]
[1736933705863,0.31025,3224.3,3224.1,40.8]
[1736933706856,0.31025,3224.3,3223.7,4.4478]
[1736933706857,3.37186723,3224.2,3223.0,4.85334388]
[1736933707065,0.31031,3223.7,3223.3,1.26484]
[1736933707363,3.2078,3223.8,3223.4,41.11033]
[1736933707364,3.5181,3223.8,3223.4,41.11033]
[1736933707571,3.2078,3223.8,3223.4,40.8]
[1736933708062,3.2078,3223.8,3223.4,41.11033]
[1736933708063,3.5181,3223.8,3223.4,41.11033]
[1736933708364,3.2078,3223.8,3223.6,0.31031]
[1736933708868,3.2078,3223.8,3223.4,40.8]
[1736933709064,3.2078,3223.8,3223.5,0.31032]
[1736933710156,1.24817,3224.1,3223.7,0.31031]
[1736933710370,0.31027,3224.1,3223.7,0.31031]
[1736933710560,3.2078,3224.2,3223.9,0.31028]
[1736933710765,3.2078,3224.2,3224.1,0.31027]
[1736933711164,3.2078,3224.2,3224.1,0.79477]
[1736933711365,3.2078,3224.2,3224.1,41.2845]
[1736933711667,3.2078,3224.2,3224.1,41.59477]
[1736933711859,3.2078,3224.2,3224.1,41.2845]
[1736933712461,3.2078,3224.2,3224.1,41.59477]
[1736933714172,3.2078,3224.7,3224.1,41.2845]
[1736933714473,3.2078,3224.7,3224.5,0.31023]
[1736933714970,3.2078,3224.7,3224.6,0.31022]
[1736933715667,0.4777,3225.2,3224.3,2.44040533]
[1736933715668,0.31017,3225.1,3224.4,0.31024]
[1736933715968,3.78879108,3225.1,3224.8,0.3102]
[1736933716174,3.78879108,3225.1,3224.9,0.4636]
[1736933716376,3.47862108,3225.1,3224.9,0.4636]
[1736933716575,0.31018,3225.0,3224.9,0.4636]
[1736933718272,3.2078,3225.3,3224.9,0.4636]
[1736933718575,3.51796,3225.3,3225.1,0.31017]
[1736933718978,3.2078,3225.3,3225.0,0.4994]
[1736933719274,3.51796,3225.3,3225.0,0.80958]
[1736933719470,3.51796,3225.3,3225.1,40.8]
[1736933720587,3.2078,3225.3,3225.1,41.11016]
[1736933720777,3.2078,3225.3,3225.2,0.31016]
[1736933721469,0.31014,3225.5,3225.2,0.31016]
[1736933721672,0.31014,3225.5,3225.3,0.31015]
[1736933722379,0.31015,3225.4,3225.1,41.11016]
[1736933722670,0.31015,3225.4,3225.2,0.31016]
[1736933724178,3.54590922,3225.6,3225.1,40.8]
[1736933724376,0.31016,3225.3,3225.1,40.8]
[1736933724576,0.31016,3225.3,3225.1,41.11017]
[1736933725076,0.31015,3225.4,3225.1,41.11017]
[1736933726379,0.31014,3225.5,3225.2,0.31015]
[1736933727778,0.31015,3225.4,3225.1,41.11016]
[1736933727975,0.31015,3225.4,3225.2,0.31016]
[1736933728180,0.31016,3225.2,3225.1,40.8]
[1736933728382,0.31018,3225.0,3224.9,0.4636]
[1736933729177,0.9607,3225.1,3224.9,0.77379]
[1736933729178,0.4749,3225.1,3224.9,0.77379]
[1736933729376,3.51797,3225.2,3224.9,0.77379]
[1736933729579,3.51797,3225.2,3225.0,0.4755]
[1736933729776,3.2078,3225.2,3225.0,0.4755]
[1736933730073,0.31017,3225.1,3225.0,0.4755]
[1736933730268,3.51797,3225.2,3225.0,0.4755]
[1736933730675,3.2078,3225.2,3225.0,0.4755]
[1736933730879,0.31017,3225.1,3225.0,0.4755]
[1736933731479,3.2078,3225.6,3225.0,6.12370533]
[1736933731680,0.76549,3226.0,3225.6,0.31012]
[1736933731874,3.46948393,3226.0,3225.2,1.248]
[1736933732076,3.51788,3226.1,3225.8,0.3101]
[1736933732283,3.51788,3226.1,3225.9,0.31009]
[1736933732480,3.46948393,3226.0,3225.9,0.31009]
[1736933732783,3.51788,3226.1,3225.9,0.31009]
[1736933733176,3.2078,3226.1,3226.0,0.31008]
[1736933733776,3.2078,3226.1,3226.0,41.11008]